Cogmind - Beta 15 @@@ ROGUE MODE // 2025.09.18 @ 22:59:39 Player: BlobtheGreat Result: Escaped! Performance ------------- Evolutions (9) 4500 Regions Visited (26) 5200 Robots Destroyed (287) 1435 Value Destroyed (11998) 11998 Prototype IDs (57) 1140 Alien Tech Used (2) 400 Bonus (6938) 6938 TOTAL SCORE: 31611 Bonus ------- High Alert Combat Kills 1044 Follower Combat Kills 548 Entered Garrisons 200 Entered DSFs 500 Aligned with FarCom 300 Met Data Miner 300 Acquired ECA 300 Met Warlord at Base 500 MAIN.C Attacked Warlord 500 Warlord Defense Kills 126 Win 3000 Friendly Fire -380 Cogmind --------- Core Integrity 1358/1600 Matter 289/300 Energy 73/150 System Corruption 5% Temperature Cool (8) Movement Flying (28) Location To Epsilon Eridani Parts ------- > --- POWER (2) -------- Micro Antimatter Reactor > --- PROPULSION (6) --- Cooled Nuclear Pulse Thruster Cooled Nuclear Pulse Thruster Cooled Nuclear Pulse Thruster Impulse Thruster Array > --- UTILITY (13) ----- Experimental Heat Sink Enhanced Optical Array Advanced Signal Interpreter Experimental Targeting Computer Advanced Weapon Cycler ECM Suite Hacking Suite Experimental System Shield > --- WEAPON (4) ------- Phasing Sabre > --- INVENTORY (5) ---- Micro Antimatter Reactor Improved Phase Shifter Faulty Advanced EM Disruption Field Core Cannon Peak State ------------ > --- POWER ------------ Micro Antimatter Reactor > --- PROPULSION ------- Cooled Nuclear Pulse Thruster Cooled Nuclear Pulse Thruster Cooled Nuclear Pulse Thruster Cooled Nuclear Pulse Thruster Impulse Thruster Array > --- UTILITY ---------- Experimental Heat Sink Improved Cooling System Enhanced Optical Array Advanced Signal Interpreter Experimental Targeting Computer Advanced Weapon Cycler Centrium Medium Armor Plating Experimental System Shield > --- WEAPON ----------- Core Cannon Phasing Sabre Plasma Sword > --- INVENTORY -------- Micro Antimatter Reactor Improved Phase Shifter [Rating: 146] Favorites ----------- Power Ion Engine Engine Ion Engine Power Core Neutrino Core Reactor Fusion Reactor Propulsion Improved Treads Treads Improved Treads Wheel Armored Huge Wheel Hover Unit Backup Propulsion III Flight Unit Cooled Nuclear Pulse Thruster Utility Huge Storage Unit Device Advanced Heat Sink Storage Huge Storage Unit Processor Advanced Signal Interpreter Hackware Ghost Barrier Protection Hardened Light Armor Plating Weapon KE Penetrator Energy Gun Backup Laser III Energy Cannon Advanced Plasma Cannon Ballistic Gun KE Penetrator Ballistic Cannon Mini Assault Cannon Launcher Rocket Array Special Weapon Improved Remote Datajack Slashing Weapon Power Sword Build | -11 -10 -10 -10 -9 -8 -7 -7 -7 -6 -6 -6 -6 -5 -5 -5 -5 -5 -5 -4 -4 -4 -4 -3 -3 -2 -1 ------- Run | Yrd Mat Min Exi Min Mat Fac Low Dat Pro Fac DSF Gar Fac Was Fac Upp Upp War Pro Fac Was Fac Res Qua Res Acc Slots Evolved 18 | . . . . . 4 2 . . . 2 . . 2 . . . . . . 2 . . 2 . 2 2 Power 1 | . . . . . . . . . . . . . 1 . . . . . . . . . . . . . Propulsion 4 | . . . . . 1 . . . . . . . 1 . . . . . . 2 . . . . . . Utility 11 | . . . . . 2 1 . . . 2 . . . . . . . . . . . . 2 . 2 2 Weapon 2 | . . . . . 1 1 . . . . . . . . . . . . . . . . . . . . Parts Attached 199 | 7 9 2 2 7 13 10 . . 7 1 8 27 20 3 13 8 3 7 2 8 9 17 8 1 4 3 Power 24 | 1 1 1 . . 2 1 . . . . 2 3 3 . 1 1 1 1 . . 2 2 1 . 1 . Engine 9 | 1 . 1 . . 1 . . . . . 1 2 1 . . 1 1 . . . . . . . . . Core 7 | . 1 . . . 1 1 . . . . . 1 . . 1 . . . . . 2 . . . . . Reactor 8 | . . . . . . . . . . . 1 . 2 . . . . 1 . . . 2 1 . 1 . Propulsion 36 | 2 2 . . 2 4 . . . . 1 . 5 2 1 2 1 . 2 . 1 3 7 1 . . . Treads 15 | 2 2 . . 2 2 . . . . 1 . 2 1 . 1 . . . . . 2 . . . . . Leg . | . . . . . . . . . . . . . . . . . . . . . . . . . . . Wheel 9 | . . . . . 1 . . . . . . 3 1 1 1 1 . . . 1 . . . . . . Hover 4 | . . . . . 1 . . . . . . . . . . . . 2 . . 1 . . . . . Flight 8 | . . . . . . . . . . . . . . . . . . . . . . 7 1 . . . Utility 82 | 2 2 . 1 1 4 6 . . 2 . 6 12 9 1 6 4 2 3 1 3 3 4 4 1 2 3 Device 41 | 1 . . . . 1 3 . . . . 4 8 5 1 3 1 . 2 . . 3 1 3 1 2 2 Storage 4 | 1 1 . 1 . . 1 . . . . . . . . . . . . . . . . . . . . Processor 12 | . . . . . 2 1 . . . . . . 1 . 1 2 1 . . 3 . 1 . . . . Hackware 6 | . . . . . . . . . . . 1 . 2 . . . . 1 . . . 1 . . . 1 Protection 19 | . 1 . . 1 1 1 . . 2 . 1 4 1 . 2 1 1 . 1 . . 1 1 . . . Artifact . | . . . . . . . . . . . . . . . . . . . . . . . . . . . Weapon 57 | 2 4 1 1 4 3 3 . . 5 . . 7 6 1 4 2 . 1 1 4 1 4 2 . 1 . Energy Gun 4 | 2 . . . . . . . . . . . 1 . . . . . . . 1 . . . . . . Energy Cannon 5 | . . . . . . . . . . . . . 1 . 2 . . . 1 . . . . . 1 . Ballistic Gun 31 | . 1 1 1 2 2 1 . . 5 . . 3 4 1 2 1 . . . 3 1 3 . . . . Ballistic Cannon 4 | . 1 . . . . 1 . . . . . 2 . . . . . . . . . . . . . . Launcher 6 | . 2 . . 2 . 1 . . . . . . 1 . . . . . . . . . . . . . Special Weapon 2 | . . . . . . . . . . . . . . . . . . 1 . . . . 1 . . . Impact Weapon . | . . . . . . . . . . . . . . . . . . . . . . . . . . . Slashing Weapon 5 | . . . . . 1 . . . . . . 1 . . . 1 . . . . . 1 1 . . . Piercing Weapon . | . . . . . . . . . . . . . . . . . . . . . . . . . . . Special Melee Weapon . | . . . . . . . . . . . . . . . . . . . . . . . . . . . Unidentified Prototypes 25 | . . . . . 1 2 . . 1 . 1 . 2 . . . . 4 1 1 . 4 2 2 4 . Parts Lost 89 | . 5 2 . . 3 . . . 2 . 4 22 6 5 9 2 14 . 8 . . . . 2 . 5 Power 12 | . . 1 . . 2 . . . . . 1 1 1 . 2 . 3 . . . . . . . . 1 Propulsion 18 | . 1 . . . . . . . . . . 4 1 2 2 1 2 . 3 . . . . 1 . 1 Utility 38 | . 1 . . . 1 . . . 2 . 3 12 3 2 4 1 4 . 1 . . . . 1 . 3 Weapon 21 | . 3 1 . . . . . . . . . 5 1 1 1 . 5 . 4 . . . . . . . Highest Loss Streak 8 | . 3 1 . . 1 . . . 1 . 2 8 2 5 5 1 5 . 3 . . . . 2 . 3 To Critical Strikes 1 | . . . . . . . . . . . . . . . . . 1 . . . . . . . . . Average Backups 16 | 4 8 9 11 15 15 15 16 18 16 16 16 19 22 21 20 21 20 20 22 3 3 3 4 4 3 4 Power 1 | . 1 . . 1 . . 1 1 1 1 1 2 2 2 1 . . . 2 . . . . 1 1 1 Propulsion 2 | 2 2 2 2 3 5 3 3 3 3 3 3 4 4 3 2 . . . . . . . 1 1 . . Utility 6 | . 2 5 5 5 4 2 2 3 2 2 2 6 8 8 8 8 9 10 11 3 3 3 2 1 1 2 Weapon 5 | . 2 2 3 4 4 8 9 10 9 9 8 5 5 5 6 8 7 6 5 . . . . . 1 1 Tool/Special . | . . . . . . . . . . . . . . . . . . . . . . . . . . . Unused Backups 43 | 1 7 . . 5 7 3 . . 2 . 1 . 2 . . 1 . . 10 . . . 1 1 . 2 Power 5 | . . . . 3 . . . . . . . . . . . . . . 1 . . . . . . 1 Propulsion 15 | . 6 . . 1 7 . . . . . . . . . . 1 . . . . . . . . . . Utility 13 | 1 . . . 1 . 2 . . . . . . . . . . . . 6 . . . 1 1 . 1 Weapon 7 | . 1 . . . . 1 . . 2 . 1 . 2 . . . . . . . . . . . . . Tool/Special 3 | . . . . . . . . . . . . . . . . . . . 3 . . . . . . . Average Slot Usage (%) 75 | . 88 96 74 100 87 68 69 61 78 80 88 85 86 72 70 74 54 52 76 47 75 82 76 78 69 71 Engine 4 | . 6 10 14 14 2 1 . . . . 2 1 6 3 . 3 2 5 . . 4 1 . . . 2 Core 2 | . 7 3 . . 6 5 7 7 7 6 2 2 . . 1 5 2 . . . 2 . . . . . Reactor 1 | . . . . . . . . . . . . 2 3 5 7 . . 1 4 . . 7 8 7 4 4 Treads 8 | . 25 28 28 28 20 7 7 7 7 6 6 4 4 . 4 5 . . . . 5 9 . . . . Wheel 2 | . . . . . . 7 7 7 7 6 6 6 4 12 5 5 . . . 3 5 4 . . . . Hover 1 | . . . . . . . . . . . . . . . . . . 10 15 5 5 . . . . . Device 7 | . 6 . . . 7 13 12 7 7 6 18 18 19 13 14 10 1 1 5 5 3 7 6 11 13 16 Storage 6 | . 16 14 14 14 9 7 7 7 7 6 6 6 5 5 5 5 5 5 4 . . . . . . . Processor 10 | . . . . . 7 11 15 15 10 6 6 6 10 8 5 10 16 17 17 19 26 23 19 17 13 12 Protection 5 | . . 14 14 14 9 4 2 7 10 13 3 9 2 3 4 6 4 . 3 . . 2 4 4 4 3 Energy Gun 1 | . 10 . . . . . . . . . . 1 . . . . . 7 . 3 . . . . . . Ballistic Gun 11 | . 11 11 2 27 23 7 7 . 17 26 26 10 14 9 8 14 12 . 3 3 16 19 . . . . Ballistic Cannon 1 | . 1 14 . . . . . . . . . 9 3 . . . . . . . . . . . . . Peak Build Rating 146 | 7 13 13 19 22 38 72 73 73 73 62 86 85 101 93 99 84 89 123 123 80 112 122 132 135 146 134 Average Rating 60 | 5 7 11 12 21 30 70 71 40 66 60 71 67 93 74 85 78 56 52 109 57 95 111 118 124 121 123 On Entrance 64 | . 7 13 11 19 22 38 72 73 73 60 62 79 57 101 44 69 84 32 123 40 80 109 96 128 115 122 Naked Turns . | . . . . . . . . . . . . . . . . . . . . . . . . . . . Heaviest Build 148 | 15 24 24 53 58 62 108 108 108 115 107 112 135 135 132 144 123 125 146 148 15 25 64 40 40 25 30 Greatest Support 145 | 40 46 46 46 46 68 28 28 28 28 28 30 40 70 52 70 70 70 42 42 16 145 145 52 43 52 52 Greatest Overweight (x) 40 | . 1 . 1 1 2 3 3 3 4 3 3 4 4 4 11 11 40 27 5 1 . 10 . . . . Average Overweight (x) 2 | . . . . 1 . 2 3 3 3 3 3 3 3 2 4 1 15 5 2 . . . . . . . Largest Inventory Capacity 25 | 8 10 10 20 20 20 25 25 25 25 25 25 25 25 25 25 25 25 25 25 5 5 5 5 5 5 5 Average Capacity 20 | 7 8 10 17 20 20 22 25 25 25 25 25 25 25 25 25 25 25 25 23 5 5 5 5 5 5 5 Most Carried 25 | 7 10 10 20 20 20 21 21 25 25 25 25 25 25 25 25 25 24 25 25 5 5 5 5 5 5 5 Average Carried 18 | 4 8 9 13 19 19 19 20 24 23 24 24 23 24 24 23 23 22 22 23 4 4 4 4 4 4 5 Final Capacity 25 | 8 10 10 20 20 20 25 25 25 25 25 25 25 25 25 25 25 25 25 5 5 5 5 5 5 5 5 Final Carried 25 | 7 10 10 19 20 20 20 21 21 24 25 25 25 25 25 22 23 21 24 5 5 5 5 5 5 5 5 Class Distribution -------------------- 34% | Mutant 17% | Tank 12% | Skirmisher 9% | Gunner 7% | Scavenger-Tank 5% | Scavenger-Gunner Dominant Class ---------------- Mutant | -10/Materials Mutant | -10/Mines Mutant | -10/Exiles Mutant | -9/Mines Skirmisher | -8/Materials Gunner | -7/Factory Gunner | -7/Lower Caves Mutant | -7/Data Miner Tank | -6/Proximity Caves Tank | -6/Factory Scavenger-Gunner | -6/DSF Scavenger-Gunner | -6/Garrison Skirmisher | -5/Factory Scavenger-Gunner | -5/Waste Tank | -5/Factory Skirmisher | -5/Upper Caves Tank | -5/Upper Caves Mutant | -5/Warlord Hacker-Tank | -4/Proximity Caves Hacker-Gunner | -4/Factory Hacker-Gunner | -4/Waste Scavenger-Tank | -4/Factory Scavenger-Sprinter | -3/Research Scavenger-Sprinter | -3/Quarantine Sprinter | -2/Research Hacker-Ninja | -1/Access Resources | -11 -10 -10 -10 -9 -8 -7 -7 -7 -6 -6 -6 -6 -5 -5 -5 -5 -5 -5 -4 -4 -4 -4 -3 -3 -2 -1 ----------- Run | Yrd Mat Min Exi Min Mat Fac Low Dat Pro Fac DSF Gar Fac Was Fac Upp Upp War Pro Fac Was Fac Res Qua Res Acc Matter Collected 10636 | 270 165 263 . 380 676 825 85 . 595 . 561 1898 1342 167 648 187 803 227 175 65 352 707 155 . 60 30 Remotely . | . . . . . . . . . . . . . . . . . . . . . . . . . . . Salvage Created 13043 | 131 661 190 . 340 1213 831 75 . 339 . 712 1686 1927 350 1371 191 626 . 1014 84 39 686 181 . 289 107 Parts 555 | 16 44 10 . 13 62 30 3 . 18 . 23 63 78 8 81 6 29 . 22 . 1 26 10 . 5 7 Haulers Intercepted 12 | . 1 . . . 3 . . . . . 1 . 2 . . . . . . 1 . 1 . . 3 . Recyclers Shooed 6 | . . . . . 2 1 . . . . . . 1 . 2 . . . . . . . . . . . Parts Field Recycled . | . . . . . . . . . . . . . . . . . . . . . . . . . . . Retrieved Matter . | . . . . . . . . . . . . . . . . . . . . . . . . . . . Parts Self-Destructed 73 | . . . . . . . 3 . 19 . . . . . . 6 22 . 23 . . . . . . . Prevented 8 | . . . . . . . . . . . . . . . . 1 6 . 1 . . . . . . . Kills | -11 -10 -10 -10 -9 -8 -7 -7 -7 -6 -6 -6 -6 -5 -5 -5 -5 -5 -5 -4 -4 -4 -4 -3 -3 -2 -1 ------- Run | Yrd Mat Min Exi Min Mat Fac Low Dat Pro Fac DSF Gar Fac Was Fac Upp Upp War Pro Fac Was Fac Res Qua Res Acc Combat Hostiles Destroyed 238 | . 19 8 . 16 18 11 1 . 9 . 9 35 29 1 25 5 17 1 20 . . 11 2 . . 1 Melee 4 | . . . . . . . . . . . . . 1 . . . . . . . . . 2 . . 1 Guns 163 | . 14 3 . 9 17 11 1 . 9 . 9 23 14 1 24 4 8 1 4 . . 11 . . . . Cannons 28 | . . 5 . . . . . . . . . 12 6 . 1 1 . . 3 . . . . . . . AOE 37 | . 5 . . 7 1 . . . . . . . 7 . . . 8 . 9 . . . . . . . Classes Destroyed 27 | 2 5 1 . 2 3 3 1 . 2 . 1 2 . 1 . . 2 1 1 . . . . . . . Worker 9 | . . 1 . . 1 2 . . . . . . 3 . 2 . . . . . . . . . . . Builder 8 | . . . . . . 1 . . . . . . 4 . 2 . . . . . . 1 . . . . Tunneler 4 | 4 . . . . . . . . . . . . . . . . . . . . . . . . . . Hauler 12 | . 1 . . . 3 . . . . . 1 . 2 . . . . . . 1 . 1 . . 3 . Recycler 12 | 1 1 . . 1 2 2 . . . . . . 4 . . . . . . . . . 1 . . . Minesweeper 1 | . . . . . . . . . 1 . . . . . . . . . . . . . . . . . Mechanic 1 | . 1 . . . . . . . . . . . . . . . . . . . . . . . . . Operator 1 | . . . . . 1 . . . . . . . . . . . . . . . . . . . . . Drone 2 | . . . . . . . . . 2 . . . . . . . . . . . . . . . . . Watcher 9 | . 1 . . . 2 . . . . . . . 2 . 2 . . . . . . 1 . . . 1 Swarmer 61 | . 6 3 . 4 3 . . . 5 . . 6 4 . 8 4 10 . 2 . . 4 2 . . . Saboteur 2 | . . . . . . . . . . . . 2 . . . . . . . . . . . . . . Grunt 88 | . 13 5 . 2 9 5 . . . . 7 14 14 . 9 . 2 . 5 . . 3 . . . . Brawler 7 | . . . . . . 1 . . . . . . 1 . . . 1 . 4 . . . . . . . Duelist 10 | . . . . 1 2 . . . . . . 3 1 . . . . . 3 . . . . . . . Protector 1 | . . . . . . . . . . . . . . . . . . . 1 . . . . . . . Sentry 16 | . . . . . 3 2 . . . . . 5 . . 1 . 2 . 1 . . 2 . . . . Demolisher 1 | . . . . . . . . . . . . . . . . . . 1 . . . . . . . . Specialist 4 | . . . . . . . . . . . . 2 2 . . . . . . . . . . . . . Hunter 15 | . . . . . 1 2 . . 1 . 1 2 2 . 3 1 . . 2 . . . . . . . Programmer 14 | . . . . . . 1 . . . . . . 5 . 4 . . . 1 . . 2 . . . 1 Heavy 1 | . . . . . . . . . . . 1 . . . . . . . . . . . . . . . Behemoth 5 | . . . . . . . 1 . 1 . . 1 . . . . 1 . 1 . . . . . . . Compactor 1 | . . . . . . . . . . . . . . 1 . . . . . . . . . . . . Decomposer 2 | . . . . . . . . . . . . . . . . 1 1 . . . . . . . . . Samaritan 1 | . . . . . . . . . . . . . . . . . 1 . . . . . . . . . Master Thief 1 | . . . . . . . . . . . . . . . . . 1 . . . . . . . . . Assembled 9 | . . . . 9 . . . . . . . . . . . . . . . . . . . . . . Martyr 1 | . . . . . . . . . . . . . . . . . . . . . 1 . . . . . Best Kill Streak 18 | 3 6 3 . 5 6 3 1 . 5 . 3 5 11 1 18 4 5 1 11 1 . 6 2 . 2 1 Combat Bots Only 12 | . 5 3 . 4 4 3 1 . 5 . 3 5 7 1 12 4 5 1 11 . . 4 2 . . 1 Max Kills in Single Turn 5 | 1 2 1 . 2 1 1 1 . 2 . 1 2 5 1 2 2 3 1 3 1 1 3 1 . 1 1 Gunslinging 1 | . . . . . . . . . 1 . . . 1 . . . 1 . . . . 1 . . . . Exploded 4 | . 2 . . 2 1 . . . . . . . 4 . . . 3 . 3 . . . . . . . Melee 1 | . . . . . . . . . . . . . 1 . . . . . . . . . 1 . . 1 Uniques/NPCs Destroyed . | . . . . . . . . . . . . . . . . . . . . . . . . . . . Combat | -11 -10 -10 -10 -9 -8 -7 -7 -7 -6 -6 -6 -6 -5 -5 -5 -5 -5 -5 -4 -4 -4 -4 -3 -3 -2 -1 -------- Run | Yrd Mat Min Exi Min Mat Fac Low Dat Pro Fac DSF Gar Fac Was Fac Upp Upp War Pro Fac Was Fac Res Qua Res Acc Hostile Shots Fired 1591 | . 89 58 . 37 69 43 12 . 57 . 52 378 145 6 174 39 73 . 117 6 . 63 20 29 37 87 Missed 490 | . 18 18 . 12 18 14 3 . 20 . 21 111 32 . 44 6 21 . 34 3 . 23 10 14 18 50 Hits 1101 | . 71 40 . 25 51 29 9 . 37 . 31 267 113 6 130 33 52 . 83 3 . 40 10 15 19 37 Melee 30 | . . . . 3 . . . . . . . 7 7 6 . . 2 . 5 . . . . . . . Projectile 1071 | . 71 40 . 22 51 29 9 . 37 . 31 260 106 . 130 33 50 . 78 3 . 40 10 15 19 37 AOE 2 | . . . . . . . . . . . . . 2 . . . . . . . . . . . . . Critical Strikes 55 | . . 4 . 1 3 . . . 3 . 2 7 7 3 7 . 1 . 9 1 . 2 . . . 5 Actively Blocked 1 | . . . . . . . . . . . . 1 . . . . . . . . . . . . . . Part Disruptions 6 | . . . . . . . . . . . . 3 1 . . . . . . . . . . . . 2 Damage Taken 18109 | . 795 507 . 320 743 231 207 . 720 . 618 3098 1727 190 2728 535 1190 . 2015 66 30 636 173 276 367 937 Core 2270 | . 81 64 . 38 70 30 30 . 36 . 18 369 252 . 88 12 211 . 417 . . 76 . 75 161 242 Absorbed by Shields 925 | . . . . . . . . . . . . 298 384 67 . . . . . . . 155 . 21 . . Reduced by Siege Mode 190 | . . . . . . . . . . . . . 46 . 119 4 21 . . . . . . . . . Redirected to Shielding 229 | . . . . . . . . . 37 . 52 45 . . . . 95 . . . . . . . . . Ignored by Resistances 56 | . . . . . . . . . . . . . . . . . . . 56 . . . . . . . Regen/Repaired (Parts) 669 | . . . . . . . . . . . . . 57 3 . . . 127 . . 292 67 . . . 123 Core Remaining (%) 71 | 100 . . . 26 87 . . . 86 . . 54 . . . . . . 2 . . 93 . 94 88 84 Volleys Fired 738 | 9 74 40 . 30 58 36 8 . 31 . 39 131 68 22 44 14 35 1 34 13 18 33 . . . . Largest 4 | 2 2 2 . 2 3 1 1 . 4 . 4 4 4 1 4 2 4 2 2 4 4 4 . . . . Hottest 236 | 100 100 50 . 46 69 60 60 . 80 . 80 194 164 98 146 75 236 188 188 85 60 114 . . . . Shots Fired 1896 | 18 116 70 . 55 169 36 8 . 89 . 156 385 183 22 147 19 109 12 99 16 55 132 . . . . Gun 1578 | 18 109 29 . 50 169 36 8 . 89 . 156 246 130 19 143 13 100 10 50 16 55 132 . . . . Cannon 293 | . . 41 . . . . . . . . . 138 50 3 4 6 5 2 44 . . . . . . . Launcher 25 | . 7 . . 5 . . . . . . . 1 3 . . . 4 . 5 . . . . . . . Special . | . . . . . . . . . . . . . . . . . . . . . . . . . . . Kinetic 1701 | . 60 70 . 50 169 36 8 . 89 . 156 369 169 19 143 13 100 10 50 3 55 132 . . . . Thermal 163 | 18 49 . . . . . . . . . . 15 11 3 4 . 4 2 44 13 . . . . . . Explosive 25 | . 7 . . 5 . . . . . . . 1 3 . . . 4 . 5 . . . . . . . Electromagnetic 7 | . . . . . . . . . . . . . . . . 6 1 . . . . . . . . . Robot Hit Streak 28 | 6 8 5 . 4 15 11 23 . 24 . 9 27 17 14 18 19 9 7 25 9 28 20 . . . . Robot Miss Streak 10 | 1 3 3 . 7 3 4 1 . 10 . 3 7 3 1 3 2 4 2 5 1 2 3 . . . . Penetration Max 1 | . . . . . . . . . . . . 1 1 . 1 . 1 . . . . 1 . . . . Secondary Targets 29 | . 2 . . . 3 . . . 3 . 2 4 4 . 3 2 2 . . . . 4 . . . . Max Gunslinging Chain 1 | . 1 . . . 1 . . . 1 . 1 1 1 . 1 1 1 . . . . 1 . . . . Autonomous 129 | . . . . . . . . . 11 . . . . . 57 . . 10 51 . . . . . . . Shots Hit Robots 1294 | 12 72 41 . 27 112 36 8 . 39 . 94 272 122 16 117 8 57 9 73 15 48 95 6 4 7 4 Core Hits 699 | 6 40 14 . 26 48 29 5 . 17 . 36 122 110 2 57 7 42 2 75 5 8 39 2 1 3 3 Critical Kills 13 | . . . . 1 1 . . . . . . . 1 1 2 . 2 . 4 . . 1 . . . . Critical Parts Destroyed 15 | . . . . . 2 . . . . . . 2 4 2 1 . . . . 1 . 3 . . . . Critical Strikes 43 | 2 3 . . 1 3 . . . . . . 4 6 7 3 . 2 . 4 1 . 4 1 . 1 1 Burn 5 | 2 3 . . . . . . . . . . . . . . . . . . . . . . . . . Meltdown 6 | . . . . . . . . . . . . . 1 . . . 1 . 4 . . . . . . . Destroy 26 | . . . . 1 3 . . . . . . 2 4 7 3 . 1 . . 1 . 4 . . . . Blast 2 | . . . . . . . . . . . . 2 . . . . . . . . . . . . . . Sever 4 | . . . . . . . . . . . . . 1 . . . . . . . . . 1 . 1 1 Melee Attacks 137 | . . . . . 9 . . . . . . 6 11 . 10 . . . . . . 3 18 23 19 38 Impact . | . . . . . . . . . . . . . . . . . . . . . . . . . . . Slashing 137 | . . . . . 9 . . . . . . 6 11 . 10 . . . . . . 3 18 23 19 38 Piercing . | . . . . . . . . . . . . . . . . . . . . . . . . . . . Sneak Attacks 5 | . . . . . . . . . . . . . . . . . . . . . . . 2 . 2 1 Combat Hostiles 1 | . . . . . . . . . . . . . . . . . . . . . . . 1 . . . Follow-up Attacks 5 | . . . . . . . . . . . . . . . . . . . . . . . 1 1 1 2 Damage Inflicted 36827 | 164 1189 571 . 748 1816 1700 679 . 1375 . 2194 6143 5615 125 3204 237 1857 304 3841 223 1096 2460 403 197 463 223 Guns 24699 | 161 763 145 . 369 1700 1681 679 . 1375 . 2194 3704 2127 125 3130 141 1170 235 1221 223 1096 2460 . . . . Cannons 4760 | . . 423 . . . . . . . . . 2104 966 . 64 96 86 69 952 . . . . . . . Explosions 5566 | . 414 . . 379 113 . . . . . . . 2391 . . . 601 . 1668 . . . . . . . Melee 1747 | . . . . . . . . . . . . 335 126 . . . . . . . . . 403 197 463 223 Ramming 55 | 3 12 3 . . 3 19 . . . . . . 5 . 10 . . . . . . . . . . . Kinetic 26896 | . 337 568 . 369 1700 1681 679 . 1375 . 2194 5520 2829 125 3130 141 1170 235 1221 66 1096 2460 . . . . Thermal 2449 | 161 426 . . . . . . . . . . 288 264 . 64 . 68 69 952 157 . . . . . . Explosive 5566 | . 414 . . 379 113 . . . . . . . 2391 . . . 601 . 1668 . . . . . . . Electromagnetic 114 | . . . . . . . . . . . . . . . . 96 18 . . . . . . . . . Impact . | . . . . . . . . . . . . . . . . . . . . . . . . . . . Slashing 1747 | . . . . . . . . . . . . 335 126 . . . . . . . . . 403 197 463 223 Piercing . | . . . . . . . . . . . . . . . . . . . . . . . . . . . Highest Corruption 5 | . 1 1 1 1 . 2 2 2 2 . . 2 2 2 3 3 3 3 1 2 2 3 . . . 5 Average Corruption 2 | . 1 1 1 1 . 2 2 2 2 . . 1 1 2 2 3 3 3 1 2 2 2 . . . 2 Corruption Purged . | . . . . . . . . . . . . . . . . . . . . . . . . . . . Corruption Blocked . | . . . . . . . . . . . . . . . . . . . . . . . . . . . Effects 227 | . 10 8 10 12 . 5 2 . 17 . . 17 16 9 16 24 48 6 1 1 1 17 . . . 7 Message Errors 56 | . 4 2 3 5 . 1 1 . 4 . . 7 2 5 3 5 8 2 . . . 4 . . . . Matter Fused 52 | . . . 2 3 . 2 . . 4 . . 1 7 2 2 6 13 . 1 . . 7 . . . 2 Heat Flow Errors 31 | . 2 . 1 1 . 1 . . 3 . . 5 4 1 4 2 4 . . 1 . 1 . . . 1 Energy Discharges 29 | . . 1 2 2 . . 1 . 1 . . . . . 5 6 5 1 . . . 3 . . . 2 Parts Rejected 5 | . 1 1 . . . . . . . . . . . . . 1 . . . . 1 . . . . 1 Data Loss (minor) 28 | . . 2 2 1 . . . . 3 . . 1 2 1 1 2 10 1 . . . 1 . . . 1 Data Loss (major) 11 | . 1 . . . . 1 . . . . . 1 . . 1 2 2 2 . . . 1 . . . . Misfires 10 | . 2 2 . . . . . . 2 . . 1 . . . . 3 . . . . . . . . . Alerts 3 | . . . . . . . . . . . . 1 . . . . 2 . . . . . . . . . Weapon Failures 2 | . . . . . . . . . . . . . 1 . . . 1 . . . . . . . . . Overload Shots . | . . . . . . . . . . . . . . . . . . . . . . . . . . . Overflow Damage 287 | . 10 2 . 23 . . . . . . . . 77 . . . 5 . 39 . . . 59 15 . 57 Projectiles 9 | . . 2 . . . . . . . . . . . . . . . . 7 . . . . . . . Explosions 204 | . 10 . . 23 . . . . . . . . 77 . . . 5 . 32 . . . . . . 57 Melee 74 | . . . . . . . . . . . . . . . . . . . . . . . 59 15 . . Knockbacks 38 | . . 7 . . . . . . . . . 22 9 . . . . . . . . . . . . . Impact . | . . . . . . . . . . . . . . . . . . . . . . . . . . . Kinetic 36 | . . 7 . . . . . . . . . 20 9 . . . . . . . . . . . . . Secondary 2 | . . . . . . . . . . . . 2 . . . . . . . . . . . . . . Self-Inflicted Damage 434 | . . . . 38 39 . . . . . . 15 12 . . . 103 . 113 . . . . . . 114 Shots 17 | . . . . 3 1 . . . . . . 1 1 . . . 5 . 5 . . . . . . 1 Rammed 8 | 1 2 . . . 1 2 . . . . . . 1 . 1 . . . . . . . . . . . Targets Rammed 9 | 1 2 1 . . 1 2 . . . . . . 1 . 1 . . . . . . . . . . . Kicked . | . . . . . . . . . . . . . . . . . . . . . . . . . . . Crushed 1 | . . 1 . . . . . . . . . . . . . . . . . . . . . . . . Highest Temperature 556 | 157 342 206 232 150 36 196 228 . 312 . 96 556 243 86 173 263 338 51 406 104 . 172 41 . . 48 Average Temperature 80 | 60 91 67 118 32 6 41 115 . 107 . 34 93 63 60 47 84 102 27 134 73 . 66 16 . . 28 Received Heat Transfer 4260 | . 408 318 . 124 324 27 36 . 390 . 228 696 494 . 561 . 141 . 323 61 . 75 18 18 . 18 Effects 10 | . 2 . . . . . . . . . . 3 . . . . 4 . 1 . . . . . . . Shutdowns 2 | . 1 . . . . . . . . . . 1 . . . . . . . . . . . . . . Energy Bleed 2 | . . . . . . . . . . . . 1 . . . . . . 1 . . . . . . . Interference 5 | . 1 . . . . . . . . . . . . . . . 4 . . . . . . . . . Matter Decay 1 | . . . . . . . . . . . . 1 . . . . . . . . . . . . . . Siege Activations 9 | . . . . . . . . . . . . . 4 . 2 2 1 . . . . . . . . . Total Turns 131 | . . . . . . . . . . . . . 58 . 57 10 6 . . . . . . . . . Longest Duration 47 | . . . . . . . . . . . . . 26 . 47 8 6 . . . . . . . . . Martial Activations . | . . . . . . . . . . . . . . . . . . . . . . . . . . . Shielding Activations . | . . . . . . . . . . . . . . . . . . . . . . . . . . . Robots Disrupted . | . . . . . . . . . . . . . . . . . . . . . . . . . . . Combat Hostiles . | . . . . . . . . . . . . . . . . . . . . . . . . . . . Robots Corrupted . | . . . . . . . . . . . . . . . . . . . . . . . . . . . Combat Hostiles . | . . . . . . . . . . . . . . . . . . . . . . . . . . . Parts Fried 1 | . . . . . . . . . . . . . . . . 1 . . . . . . . . . . Impact Corruptions . | . . . . . . . . . . . . . . . . . . . . . . . . . . . Robots Melted 6 | . . . . . . . . . . . . . 1 . . . 1 . 4 . . . . . . . Combat Hostiles 6 | . . . . . . . . . . . . . 1 . . . 1 . 4 . . . . . . . Parts Melted 20 | 3 7 . . . . . . . . . . . 1 . . . 2 . 6 . . 1 . . . . Heat Transferred 4730 | 629 1406 . . . . . . . . . . 370 350 . 100 . 100 87 1244 444 . . . . . . Parts Sabotaged 2 | . . . . . . . . . . . . 2 . . . . . . . . . . . . . . Parts Stolen . | . . . . . . . . . . . . . . . . . . . . . . . . . . . Parts Stripped . | . . . . . . . . . . . . . . . . . . . . . . . . . . . Power Chain Reactions . | . . . . . . . . . . . . . . . . . . . . . . . . . . . Alert | -11 -10 -10 -10 -9 -8 -7 -7 -7 -6 -6 -6 -6 -5 -5 -5 -5 -5 -5 -4 -4 -4 -4 -3 -3 -2 -1 ------- Run | Yrd Mat Min Exi Min Mat Fac Low Dat Pro Fac DSF Gar Fac Was Fac Upp Upp War Pro Fac Was Fac Res Qua Res Acc Maximum Alert Level 4 | . . . . . 1 . . . . 1 1 4 3 1 2 . . . . . . 1 1 1 1 . Low Security (%) 64 | 100 100 100 . 100 82 100 . . . 75 37 . . 38 83 . . . . 100 100 57 38 28 79 100 Level 1 12 | . . . . . 17 . . . . 25 62 18 . 61 12 . . . . . . 42 61 71 20 . Level 2 14 | . . . . . . . . . . . . 40 68 . 4 . . . . . . . . . . . Level 3 7 | . . . . . . . . . . . . 33 31 . . . . . . . . . . . . . Level 4 . | . . . . . . . . . . . . 8 . . . . . . . . . . . . . . Level 5 . | . . . . . . . . . . . . . . . . . . . . . . . . . . . High Security . | . . . . . . . . . . . . . . . . . . . . . . . . . . . Max Security . | . . . . . . . . . . . . . . . . . . . . . . . . . . . Sterilizations 1 | . . . . . . . . . . . 1 . . . . . . . . . . . . . . . Peak Influence 1187 | 5 169 65 . 98 316 129 . . . 203 304 1187 1032 360 443 . . . . 143 34 377 353 220 228 192 Initial 623 | . . 48 . . 19 129 . . . 203 114 228 623 360 60 . . . . 143 31 . 192 196 108 130 Average 224 | 1 52 20 . 11 73 45 . . . 187 215 673 652 228 71 . . . . 120 7 174 253 204 146 150 Influence Increases 8284 | 25 576 255 . 189 616 372 30 . 185 150 230 1179 1081 6 756 135 365 20 480 7 112 715 288 88 180 244 Destroy 0b10 Robot/C 4620 | . 380 160 . 140 360 220 20 . 140 . 180 700 580 . 500 100 320 20 380 . . 360 40 . . 20 Destroy 0b10 Robot/NC 315 | 25 20 5 . 5 45 25 . . 15 . 5 15 75 . 30 . . . 5 5 . 15 5 . 15 5 Destroy Leader 820 | . 74 30 . 20 90 60 10 . 30 . 30 60 118 . 94 20 30 . 50 2 . 74 10 . 6 12 Allied During Kill 139 | . . . . . . . . . . . . . . . . . . . . . . 139 . . . . Successful Hack 172 | . 18 . . . 24 28 . . . . . . 28 . 35 . . . . . . 5 20 14 . . Select Force Hacks 60 | . 60 . . . . . . . . . . . . . . . . . . . . . . . . . Disable Machine 435 | . . 45 . . 60 30 . . . . 15 15 135 . 30 . . . . . . 30 . 45 . 30 Anti-Garrison Action 250 | . . . . . . . . . . . . 250 . . . . . . . . . . . . . . Destroy Structure 618 | . 24 . . 24 37 9 . . . . . 19 130 6 52 . . . . . 112 32 18 14 24 117 Advance Influence 150 | . . . . . . . . . . 150 . . . . . . . . . . . . . . . . Partial Spotted 150 | . . . . . . . . . . . . . . . . . . . . . . . 45 15 30 60 Lose Combat Pursuer 555 | . . 15 . . . . . . . . . 120 15 . 15 15 15 . 45 . . 60 150 . 105 . Influence Decreases 8166 | 25 451 339 41 139 380 551 137 . 99 73 89 296 1238 950 413 564 365 12 260 145 202 348 305 244 156 344 Entered New Map 2579 | . . 77 41 . 31 157 41 . . 33 49 76 564 670 26 159 . . 8 85 59 . 175 154 86 88 Time Decay 4660 | 25 401 242 . 139 319 335 96 . 99 40 . . 614 230 297 385 308 12 182 60 72 328 130 70 70 206 Lost Part 777 | . 50 20 . . 30 . . . . . 40 220 60 50 90 20 57 . 70 . . . . 20 . 50 Lost Ally 91 | . . . . . . . . . . . . . . . . . . . . . 71 20 . . . . Purge Threat 59 | . . . . . . 59 . . . . . . . . . . . . . . . . . . . . Squads Dispatched 45 | . 5 . . . 2 6 . . . . 1 . 8 . 7 . 1 . 1 1 . 4 2 1 4 2 Investigation 6 | . 4 . . . . 1 . . . . . . . . . . . . . . . . . . 1 . Extermination 13 | . . . . . . 2 . . . . . . 3 . 2 . . . . . . 2 2 . . 2 Reinforcement 18 | . 1 . . . 2 3 . . . . 1 . 2 . 2 . . . . 1 . 2 . 1 3 . Assault 4 | . . . . . . . . . . . . . 2 . . . 1 . 1 . . . . . . . Garrison 4 | . . . . . . . . . . . . . 1 . 3 . . . . . . . . . . . Intercept . | . . . . . . . . . . . . . . . . . . . . . . . . . . . Searches Triggered . | . . . . . . . . . . . . . . . . . . . . . . . . . . . Data Miner Redirects 1 | . . . . . . . . . . . . . 1 . . . . . . . . . . . . . Construction Impeded . | . . . . . . . . . . . . . . . . . . . . . . . . . . . Haulers Reinforced 5 | . . . . . . . . . . . . . . . 1 . . . . 1 . 1 . . 2 . Active Scanning Responses . | . . . . . . . . . . . . . . . . . . . . . . . . . . . Cargo Convoy Interrupts . | . . . . . . . . . . . . . . . . . . . . . . . . . . . Stealth | -11 -10 -10 -10 -9 -8 -7 -7 -7 -6 -6 -6 -6 -5 -5 -5 -5 -5 -5 -4 -4 -4 -4 -3 -3 -2 -1 --------- Run | Yrd Mat Min Exi Min Mat Fac Low Dat Pro Fac DSF Gar Fac Was Fac Upp Upp War Pro Fac Was Fac Res Qua Res Acc Distress Signals 11 | . 1 . . 1 1 . . . . . . . 2 . . . . 1 . . . . 1 . 3 1 Communications Jammed . | . . . . . . . . . . . . . . . . . . . . . . . . . . . Distress Signals . | . . . . . . . . . . . . . . . . . . . . . . . . . . . Times Spotted 423 | . 33 9 . 19 22 16 1 . 10 . 10 38 38 7 33 6 16 2 27 4 6 30 14 11 20 51 Peak Tracking Total 11 | . 5 3 . 4 5 3 1 . 6 . 4 5 7 5 9 4 5 2 9 4 2 5 8 9 9 11 Tactical Retreats 27 | . . 1 . 1 . . . . . . . 6 1 1 1 1 1 . 1 . . 1 4 . 2 6 Traps | -11 -10 -10 -10 -9 -8 -7 -7 -7 -6 -6 -6 -6 -5 -5 -5 -5 -5 -5 -4 -4 -4 -4 -3 -3 -2 -1 ------- Run | Yrd Mat Min Exi Min Mat Fac Low Dat Pro Fac DSF Gar Fac Was Fac Upp Upp War Pro Fac Was Fac Res Qua Res Acc Traps Triggered 18 | . 2 . . . . 2 . . . . 1 6 2 . 1 . . . . 1 . 1 . 1 . 1 Indirectly . | . . . . . . . . . . . . . . . . . . . . . . . . . . . Trap Hack Attempts . | . . . . . . . . . . . . . . . . . . . . . . . . . . . Triggered . | . . . . . . . . . . . . . . . . . . . . . . . . . . . Disarmed . | . . . . . . . . . . . . . . . . . . . . . . . . . . . Reprogrammed . | . . . . . . . . . . . . . . . . . . . . . . . . . . . Reused . | . . . . . . . . . . . . . . . . . . . . . . . . . . . Traps Extracted . | . . . . . . . . . . . . . . . . . . . . . . . . . . . Installed . | . . . . . . . . . . . . . . . . . . . . . . . . . . . Triggered . | . . . . . . . . . . . . . . . . . . . . . . . . . . . Most Traps Carried 4 | . . . . . . . . . 4 4 4 4 4 4 4 4 4 4 4 . . . . . . . Machines | -11 -10 -10 -10 -9 -8 -7 -7 -7 -6 -6 -6 -6 -5 -5 -5 -5 -5 -5 -4 -4 -4 -4 -3 -3 -2 -1 ---------- Run | Yrd Mat Min Exi Min Mat Fac Low Dat Pro Fac DSF Gar Fac Was Fac Upp Upp War Pro Fac Was Fac Res Qua Res Acc Machines Disabled 32 | . . 3 . . 4 2 . . . . 1 4 9 . 2 . . . . . . 2 . 3 . 2 Max in Single Turn 3 | . . 1 . . 1 1 . . . . 1 1 3 . 1 . . . . . . 1 . 1 . 1 Garrison Access 1 | . . . . . . 1 . . . . . . . . . . . . . . . . . . . . Garrison Relay 3 | . . . . . . . . . . . . 3 . . . . . . . . . . . . . . Energy Cycler 1 | . . . . . . . . . . . . . . . . . . . . . . . . . . 1 Machines Repaired . | . . . . . . . . . . . . . . . . . . . . . . . . . . . Machines Dismantled . | . . . . . . . . . . . . . . . . . . . . . . . . . . . Machines Sabotaged . | . . . . . . . . . . . . . . . . . . . . . . . . . . . Overloaded Fab Kills . | . . . . . . . . . . . . . . . . . . . . . . . . . . . Hacking | -11 -10 -10 -10 -9 -8 -7 -7 -7 -6 -6 -6 -6 -5 -5 -5 -5 -5 -5 -4 -4 -4 -4 -3 -3 -2 -1 --------- Run | Yrd Mat Min Exi Min Mat Fac Low Dat Pro Fac DSF Gar Fac Was Fac Upp Upp War Pro Fac Was Fac Res Qua Res Acc Machines Accessed 54 | . 8 . 1 . 5 9 . 4 . 1 . 1 5 . 5 1 . . . . . 4 5 3 1 1 Terminals 35 | . 6 . . . 4 5 . . . 1 . 1 4 . 3 . . . . . . 2 4 3 1 1 Fabricators 3 | . . . . . . 1 . . . . . . 1 . . . . . . . . . 1 . . . Repair Stations . | . . . . . . . . . . . . . . . . . . . . . . . . . . . Recycling Units 6 | . 2 . . . . 1 . . . . . . . . 2 . . . . . . 1 . . . . Scanalyzers 2 | . . . . . 1 1 . . . . . . . . . . . . . . . . . . . . Garrison Access 2 | . . . . . . 1 . . . . . . . . . . . . . . . 1 . . . . Total Hacks 148 | . 27 . 1 . 18 18 . 27 . 1 . 2 12 . 10 1 . . . . . 7 14 6 2 2 Successful 79 | . 16 . 1 . 8 8 . 27 . 1 . . 6 . 4 1 . . . . . 2 4 1 . . Failed 69 | . 11 . . . 10 10 . . . . . 2 6 . 6 . . . . . . 5 10 5 2 2 Catastrophic 23 | . 2 . . . 1 4 . . . . . . 3 . 1 . . . . . . 3 3 4 1 1 Database Lockouts . | . . . . . . . . . . . . . . . . . . . . . . . . . . . Manual 76 | . 18 . 1 . 13 5 . . . . . . 8 . 5 . . 2 . . . 3 11 6 2 2 Terminals 88 | . 20 . . . 16 9 . . . 1 . 2 7 . 7 . . . . . . 3 13 6 2 2 Fabricators 8 | . . . . . . 2 . . . . . . 5 . . . . . . . . . 1 . . . Repair Stations . | . . . . . . . . . . . . . . . . . . . . . . . . . . . Recycling Units 14 | . 7 . . . . 1 . . . . . . . . 3 . . . . . . 3 . . . . Scanalyzers 6 | . . . . . 2 4 . . . . . . . . . . . . . . . . . . . . Garrison Access 3 | . . . . . . 2 . . . . . . . . . . . . . . . 1 . . . . Terminal Hacks 41 | . 5 . 1 . 1 2 . 27 . 1 . . . . 2 1 . . . . . . 1 . . . Record 12 | . . . . . . . . 11 . . . . . . 1 . . . . . . . . . . . Part Schematic 10 | . . . . . . . . 10 . . . . . . . . . . . . . . . . . . Robot Schematic 3 | . . . . . . . . 3 . . . . . . . . . . . . . . . . . . Robot Analysis 2 | . 2 . . . . . . . . . . . . . . . . . . . . . . . . . Prototype ID Bank 3 | . . . . . . . . 3 . . . . . . . . . . . . . . . . . . Open Door 1 | . . . . . . . . . . . . . . . . 1 . . . . . . . . . . Open DSF 1 | . . . . . . . . . . 1 . . . . . . . . . . . . . . . . Branch Access Points 5 | . 1 . . . 1 1 . . . . . . . . 1 . . . . . . . 1 . . . Unreport Threat 1 | . . . . . . 1 . . . . . . . . . . . . . . . . . . . . Recall Reinforcements 1 | . 1 . . . . . . . . . . . . . . . . . . . . . . . . . Hauler Manifests 1 | . 1 . . . . . . . . . . . . . . . . . . . . . . . . . Proto ID Catalog 1 | . . . 1 . . . . . . . . . . . . . . . . . . . . . . . Fabricator Hacks 5 | . . . . . . 1 . . . . . . 4 . . . . . . . . . . . . . Network Status 1 | . . . . . . 1 . . . . . . . . . . . . . . . . . . . . Load Schematic 2 | . . . . . . . . . . . . . 2 . . . . . . . . . . . . . Build 2 | . . . . . . . . . . . . . 2 . . . . . . . . . . . . . Repair Station Hacks . | . . . . . . . . . . . . . . . . . . . . . . . . . . . Recycling Unit Hacks 3 | . 2 . . . . . . . . . . . . . . . . . . . . 1 . . . . Retrieve Components 3 | . 2 . . . . . . . . . . . . . . . . . . . . 1 . . . . Scanalyzer 5 | . . . . . 2 3 . . . . . . . . . . . . . . . . . . . . Insert Component 3 | . . . . . 1 2 . . . . . . . . . . . . . . . . . . . . Analyze 2 | . . . . . 1 1 . . . . . . . . . . . . . . . . . . . . Garrison Access Hacks 1 | . . . . . . 1 . . . . . . . . . . . . . . . . . . . . Seal Access 1 | . . . . . . 1 . . . . . . . . . . . . . . . . . . . . Unauthorized Hacks 24 | . 9 . . . 5 1 . . . . . . 2 . 2 . . . . . . 1 3 1 . . Terminals 21 | . 7 . . . 5 1 . . . . . . 1 . 2 . . . . . . 1 3 1 . . Track 1 | . . . . . . . . . . . . . . . . . . . . . . . 1 . . . Assimilate 1 | . . . . . 1 . . . . . . . . . . . . . . . . . . . . . Botnet 11 | . 2 . . . 1 1 . . . . . . 1 . 2 . . . . . . 1 2 1 . . Skim 8 | . 5 . . . 3 . . . . . . . . . . . . . . . . . . . . . Fabricators 1 | . . . . . . . . . . . . . 1 . . . . . . . . . . . . . Prioritize 1 | . . . . . . . . . . . . . 1 . . . . . . . . . . . . . Repair Stations . | . . . . . . . . . . . . . . . . . . . . . . . . . . . Recycling Units 2 | . 2 . . . . . . . . . . . . . . . . . . . . . . . . . Tunnel 2 | . 2 . . . . . . . . . . . . . . . . . . . . . . . . . Scanalyzers . | . . . . . . . . . . . . . . . . . . . . . . . . . . . Garrison Access . | . . . . . . . . . . . . . . . . . . . . . . . . . . . Data Cores Recovered . | . . . . . . . . . . . . . . . . . . . . . . . . . . . Used . | . . . . . . . . . . . . . . . . . . . . . . . . . . . Hacking Detections 41 | . 6 . . . 4 7 . . . . . 1 5 . 5 . . . . . . 3 5 3 1 1 Full Trace Events 3 | . 1 . . . . 1 . . . . . . . . . . . . . . . . . . 1 . Feedback Events 1 | . 1 . . . . . . . . . . . . . . . . . . . . . . . . . Corruption 1 | . 1 . . . . . . . . . . . . . . . . . . . . . . . . . Feedback Blocked 1 | . . . . . . . . . . . . . . . . . . . . . . . . . 1 . Robot Schematics Acquired 3 | . . . . . . . . 3 . . . . . . . . . . . . . . . . . . Robots Built . | . . . . . . . . . . . . . . . . . . . . . . . . . . . Authchips . | . . . . . . . . . . . . . . . . . . . . . . . . . . . Time . | . . . . . . . . . . . . . . . . . . . . . . . . . . . Total Robot Build Rating . | . . . . . . . . . . . . . . . . . . . . . . . . . . . Part Schematics Acquired 12 | . . . . . 1 1 . 10 . . . . . . . . . . . . . . . . . . Parts Built 2 | . . . . . . . . . . . . . 2 . . . . . . . . . . . . . Authchips 2 | . . . . . . . . . . . . . 2 . . . . . . . . . . . . . Time 80 | . . . . . . . . . . . . . 80 . . . . . . . . . . . . . Total Part Build Rating 11 | . . . . . . . . . . . . . 11 . . . . . . . . . . . . . Parts Repaired . | . . . . . . . . . . . . . . . . . . . . . . . . . . . Time . | . . . . . . . . . . . . . . . . . . . . . . . . . . . Parts Recycled . | . . . . . . . . . . . . . . . . . . . . . . . . . . . Recycled Matter . | . . . . . . . . . . . . . . . . . . . . . . . . . . . Retrieved Matter . | . . . . . . . . . . . . . . . . . . . . . . . . . . . Retrieved Components 19 | . 13 . . . . . . . . . . . . . . . . . . . . 6 . . . . Parts Scanalyzed 2 | . . . . . 1 1 . . . . . . . . . . . . . . . . . . . . Part Schematics Acquired 2 | . . . . . 1 1 . . . . . . . . . . . . . . . . . . . . Parts Damaged 1 | . . . . . 1 . . . . . . . . . . . . . . . . . . . . . Bothacking | -11 -10 -10 -10 -9 -8 -7 -7 -7 -6 -6 -6 -6 -5 -5 -5 -5 -5 -5 -4 -4 -4 -4 -3 -3 -2 -1 ------------ Run | Yrd Mat Min Exi Min Mat Fac Low Dat Pro Fac DSF Gar Fac Was Fac Upp Upp War Pro Fac Was Fac Res Qua Res Acc Used RIF Installer . | . . . . . . . . . . . . . . . . . . . . . . . . . . . Robots Hacked . | . . . . . . . . . . . . . . . . . . . . . . . . . . . Non-combat . | . . . . . . . . . . . . . . . . . . . . . . . . . . . Combat . | . . . . . . . . . . . . . . . . . . . . . . . . . . . Robot Hacks Applied . | . . . . . . . . . . . . . . . . . . . . . . . . . . . Relay Couplers Released 15 | . . . . . . . . . . . . 12 3 . . . . . . . . . . . . . Machine Destruction 12 | . . . . . . . . . . . . 12 . . . . . . . . . . . . . . Programmers 3 | . . . . . . . . . . . . . 3 . . . . . . . . . . . . . Fabnet Peak Effective % . | . . . . . . . . . . . . . . . . . . . . . . . . . . . Robots Rewired 1 | . . . . . . . . . . . . . . . . . 1 . . . . . . . . . Allies Hacked . | . . . . . . . . . . . . . . . . . . . . . . . . . . . Hacks Repelled . | . . . . . . . . . . . . . . . . . . . . . . . . . . . Allies | -11 -10 -10 -10 -9 -8 -7 -7 -7 -6 -6 -6 -6 -5 -5 -5 -5 -5 -5 -4 -4 -4 -4 -3 -3 -2 -1 -------- Run | Yrd Mat Min Exi Min Mat Fac Low Dat Pro Fac DSF Gar Fac Was Fac Upp Upp War Pro Fac Was Fac Res Qua Res Acc Total Allies 20 | . . . . . . . . . . . . . . . . . 1 . . . 19 . . . . . Largest Group 19 | . . . . . . . . . . . . . . . . . 1 . . . 19 7 . . . . Highest-Rated Group 702 | . . . . . . . . . . . . . . . . . 29 . . . 702 284 . . . . Highest-Rated Ally 50 | . . . . . . . . . . . . . . . . . 29 . . . 50 47 . . . . Initial Warlord ECA Mod 219 | . . . . . . . . . . . . 10 16 16 16 16 16 16 15 15 15 15 14 14 13 12 Total Orders . | . . . . . . . . . . . . . . . . . . . . . . . . . . . Ally Attacks 175 | . . . . . . . . . . . . . . . . . 1 . . . 119 55 . . . . Total Damage 5577 | . . . . . . . . . . . . . . . . . . . . . 4552 1025 . . . . Kills 19 | . . . . . . . . . . . . . . . . . . . . . 12 7 . . . . Allies Corrupted . | . . . . . . . . . . . . . . . . . . . . . . . . . . . Allies Melted . | . . . . . . . . . . . . . . . . . . . . . . . . . . . Intel | -11 -10 -10 -10 -9 -8 -7 -7 -7 -6 -6 -6 -6 -5 -5 -5 -5 -5 -5 -4 -4 -4 -4 -3 -3 -2 -1 ------- Run | Yrd Mat Min Exi Min Mat Fac Low Dat Pro Fac DSF Gar Fac Was Fac Upp Upp War Pro Fac Was Fac Res Qua Res Acc Active Infowar (turns) 10931 | 96 668 . . . . 1035 144 . 74 . 197 . 1515 . 1025 1218 1814 128 592 122 349 956 268 152 149 429 Optics 4614 | . . . . . . . . . . . . . . . . . 1469 128 592 122 349 956 268 152 149 429 Sensors 3439 | . . . . . . . . . . . . . 1515 . . 1165 456 . . . . . . . . 303 A.S.S. 2 | . . . . . . . . . . . 2 . . . . . . . . . . . . . . . Terrain 2704 | . . . . . . . . . . . . . . . 1025 1217 462 . . . . . . . . . Seismic 2821 | 96 668 . . . . 1035 144 . 74 . 195 . . . 609 . . . . . . . . . . . ECM 215 | . . . . . . . . . . . . . . . . . . . . . . . . . . 215 Robot Analysis Total 2 | . 2 . . . . . . . . . . . . . . . . . . . . . . . . . Derelict Logs Recovered 8 | . . 2 . 2 . . . . 2 . . . . . . 2 . . . . . . . . . . Drone Launches . | . . . . . . . . . . . . . . . . . . . . . . . . . . . Drone Recoveries . | . . . . . . . . . . . . . . . . . . . . . . . . . . . Exploration | -11 -10 -10 -10 -9 -8 -7 -7 -7 -6 -6 -6 -6 -5 -5 -5 -5 -5 -5 -4 -4 -4 -4 -3 -3 -2 -1 ------------- Run | Yrd Mat Min Exi Min Mat Fac Low Dat Pro Fac DSF Gar Fac Was Fac Upp Upp War Pro Fac Was Fac Res Qua Res Acc Turns Passed 24056 | 190 1488 948 789 1419 1162 1349 204 112 952 80 337 1521 2022 495 1097 1218 3515 2141 592 122 349 956 268 152 149 429 Spaces Moved 12471 | 92 756 506 366 456 477 911 133 77 595 55 178 744 929 286 520 542 373 488 235 108 281 724 848 374 356 1061 Core 212 | 3 . . . . . . . . . . . . . . . . 163 46 . . . . . . . . Treads 4145 | 89 756 506 366 456 428 . . . . . 1 . 306 . 34 436 210 . . . 72 485 . . . . Legs . | . . . . . . . . . . . . . . . . . . . . . . . . . . . Wheels 4264 | . . . . . 49 911 133 77 595 55 177 744 623 286 486 106 . . . 22 . . . . . . Hover 972 | . . . . . . . . . . . . . . . . . . 442 235 86 209 . . . . . Flight 2878 | . . . . . . . . . . . . . . . . . . . . . . 239 848 374 356 1061 Fastest Speed 12 | 50 160 160 160 240 130 115 145 145 145 145 145 125 160 123 145 155 225 183 38 50 55 23 12 18 12 12 Average Speed 166 | 156 166 160 213 240 196 136 145 145 145 145 146 150 181 132 171 212 907 434 210 68 96 110 24 25 25 25 Slowest Speed 2050 | 160 240 160 240 240 240 145 145 145 160 145 400 160 225 160 245 245 2050 1400 296 105 160 780 25 28 28 28 Overloaded Moves 97 | . . . . . . . . . . . . . . . . . . . 28 . . . 17 17 19 16 Propulsion Burnouts . | . . . . . . . . . . . . . . . . . . . . . . . . . . . Robots Hopped 24 | . . . . . . . . . . . . . . . . . . . . . . 3 6 . 1 14 Potential Cave-ins . | . . . . . . . . . . . . . . . . . . . . . . . . . . . Cave-ins Triggered . | . . . . . . . . . . . . . . . . . . . . . . . . . . . Exploration Rate (%) 50 | 6 92 98 61 81 37 18 25 68 69 2 92 64 25 99 19 68 54 70 55 4 87 15 30 69 17 32 Regions Visited 26 Branch Regions 11 Pre-discovered Areas 6 | . 3 . . . . . . 1 1 . . . . . . 1 . . . . . . . . . . Known Exits Taken 14 | . 1 . . . 1 1 . . 1 1 . . . . 1 1 1 1 1 . . 1 1 1 1 . Unknown Exits Taken 6 | 1 . 1 1 1 . . 1 1 . . . . . . . . . . . . . . . . . . Scrap Searched 11 | . . 1 . 2 . . 1 . 3 . . . . . . 3 . . 1 . . . . . . . Spaces Dug 119 | . 13 . . 21 9 . . . . . . . 11 3 9 . . . . . . 5 9 9 8 22 Terrain Destroyed 546 | . 22 . . 47 36 6 3 . 8 . . 14 70 3 26 1 96 . 138 . . 14 9 9 8 36 Melee 75 | . . . . . 9 . . . . . . . 7 . 8 . . . . . . 3 9 9 8 22 Projectile 109 | . . . . . . 6 3 . 8 . . 1 19 3 18 1 13 . 26 . . 11 . . . . AOE 362 | . 22 . . 47 27 . . . . . . 13 44 . . . 83 . 112 . . . . . . 14 Terrain Rammed . | . . . . . . . . . . . . . . . . . . . . . . . . . . . Walls Destroyed . | . . . . . . . . . . . . . . . . . . . . . . . . . . . Machines Disabled . | . . . . . . . . . . . . . . . . . . . . . . . . . . . Actions | -11 -10 -10 -10 -9 -8 -7 -7 -7 -6 -6 -6 -6 -5 -5 -5 -5 -5 -5 -4 -4 -4 -4 -3 -3 -2 -1 --------- Run | Yrd Mat Min Exi Min Mat Fac Low Dat Pro Fac DSF Gar Fac Was Fac Upp Upp War Pro Fac Was Fac Res Qua Res Acc Total 14547 | 117 888 582 377 736 591 1020 143 78 669 55 242 981 1136 381 641 589 444 504 278 140 330 807 875 401 389 1153 Wait 653 | . 21 30 . 222 5 21 . . 22 . . 25 79 64 32 15 5 . 1 9 11 3 3 2 12 71 Move 12399 | 91 755 505 365 455 476 910 132 76 594 54 177 741 929 285 519 541 372 487 234 108 280 718 835 373 353 1034 Hop 21 | . . . . . . . . . . . . . . . . . . . . . . 2 6 . 1 12 Pick Up 115 | 8 12 2 6 9 8 10 1 . 9 . 5 9 11 2 7 4 4 2 1 1 1 1 1 1 . . Fast Attach 138 | 7 5 2 1 . 10 6 . . 4 . 5 19 11 1 6 5 1 7 2 7 9 14 8 2 3 3 Attach 65 | . 2 1 1 2 2 2 . 1 4 . 2 11 8 2 10 4 5 1 2 1 1 1 . . 2 . Detach 29 | . 1 . . . . 4 . 1 . . 1 6 . . 4 1 1 3 . 1 . 4 . . 2 . Swap 69 | . 6 . 1 7 6 4 2 . 2 1 3 4 8 2 8 4 3 2 1 . 1 4 . . . . Drop 130 | 1 10 1 3 11 16 17 . . 3 . 6 5 10 3 . 1 2 1 3 . 9 18 6 2 2 . Fire 738 | 9 74 40 . 30 58 36 8 . 31 . 39 131 68 22 44 14 35 1 34 13 18 33 . . . . Melee 120 | . . . . . 9 . . . . . . 6 11 . 10 . . . . . . 3 16 18 14 33 Ram . | . . . . . . . . . . . . . . . . . . . . . . . . . . . Kick . | . . . . . . . . . . . . . . . . . . . . . . . . . . . Crush 9 | 1 2 1 . . 1 2 . . . . . . 1 . 1 . . . . . . . . . . . Escape Stasis 45 | . . . . . . 8 . . . . 4 24 . . . . . . . . . 6 . 3 . . Rewire 16 | . . . . . . . . . . . . . . . . . 16 . . . . . . . . . Trap . | . . . . . . . . . . . . . . . . . . . . . . . . . . . Miscellaneous . | . . . . . . . . . . . . . . . . . . . . . . . . . . . Route ------- -11/Scrapyard -10/Materials (discovered 3 exits: *Mat x2 / *Min) -10/Mines (discovered 4 exits: *Mat x2 / *Exi / *Sub) -10/Exiles -9/Mines (discovered 2 exits: *Mat x2) -8/Materials (discovered 2 exits: *Fac x2) -7/Factory (discovered 3 exits: Sto / *Low x2) -7/Lower Caves -7/Data Miner -6/Proximity Caves -6/Factory -6/DSF -6/Garrison (discovered 3 exits: *Fac x3) -5/Factory -5/Waste -5/Factory (discovered 2 exits: *Upp x2) -5/Upper Caves -5/Upper Caves (discovered 2 exits: *Fac / *War) -5/Warlord -4/Proximity Caves -4/Factory -4/Waste -4/Factory -3/Research (discovered 3 exits: Arm / *Qua x2) -3/Quarantine -2/Research -1/Access To Epsilon Eridani History --------- Turn | Location | Event 12 | -11/Scrapyard | Discovered new exit (range 16) 191 | -11/Scrapyard | Entered Materials 244 | -10/Materials | Identified exit to Mines 306 | -10/Materials | Build established: Mutant 565 | -10/Materials | Discovered new exit (range 6) 857 | -10/Materials | Learned location of 2 exits from Subcaves 921 | -10/Materials | Learned Storage trap positions 976 | -10/Materials | Discovered new exit (range 11) 1043 | -10/Materials | Learned Storage interactive machine intel 1060 | -10/Materials | Learned Storage trap positions 1078 | -10/Materials | Learned 2 Storage zone layouts 1102 | -10/Materials | Learned 2 Mines zone layouts 1134 | -10/Materials | Learned 4 Subcaves zone layouts 1479 | -10/Materials | Lost 3 parts (1n2w) 1679 | -10/Materials | Entered Mines 1680 | -10/Mines | Identified exit to Materials 1680 | -10/Mines | Identified exit to Subcaves 1778 | -10/Mines | Learned Materials garrison access intel 1846 | -10/Mines | Received a Rocket Launcher from a helpful Derelict 2093 | -10/Mines | Discovered exit to Materials (range 12) 2527 | -10/Mines | Learned Materials trap positions 2546 | -10/Mines | Core integrity fell below 50% 2619 | -10/Mines | Deemed a non-threat by the Exiles lab entrance 2621 | -10/Mines | Discovered new exit (range 5) 2627 | -10/Mines | Entered Exiles 2667 | -10/Exiles | Met 8R-AWN 2692 | -10/Exiles | Met EX-HEX 2742 | -10/Exiles | Met EX-BIN 2763 | -10/Exiles | Met EX-DEC 2990 | -10/Exiles | Aligned with FarCom system 2992 | -10/Exiles | Given EX-Vault access code 3050 | -10/Exiles | Opened EX-Vault 3069 | -10/Exiles | Found XL Autogun Array 3080 | -10/Exiles | Found Chronowheel 3083 | -10/Exiles | Found AWS/Gauss 3132 | -10/Exiles | Warned to stay clear of 0b10 Research branches 3382 | -10/Exiles | Discovered new exit (range 15) 3416 | -10/Exiles | Stole three prototypes: Chronowheel, AWS/Gauss, XL Autogun Array 3416 | -10/Exiles | Entered Mines 3516 | -9/Mines | Discovered new exit (range 6) 3696 | -9/Mines | Learned location of 1 exit from Materials 3708 | -9/Mines | Joined a pair of Derelicts in attacking an 0b10 outpost 3797 | -9/Mines | Found a damaged Exp. Sensor Array with a note attached 3802 | -9/Mines | Found Prototype Device 3819 | -9/Mines | Assembled infested the area 3824 | -9/Mines | Assisted by a Guerilla fighting off Assembled 4624 | -9/Mines | Learned 2 Materials zone layouts 4819 | -9/Mines | Discovered new exit (range 8) 4835 | -9/Mines | Entered Materials 4835 | -8/Materials | Evolved 4 slots: Propulsion x1, Utility x2, Weapon x1 4836 | -8/Materials | Identified exit to Factory 4838 | -8/Materials | Loaded intel: 25 trap records 4839 | -8/Materials | Loaded intel: 1 garrison access location 5775 | -8/Materials | Build established: Skirmisher 5997 | -8/Materials | Entered Factory 5997 | -7/Factory | Evolved 2 slots: Utility x1, Weapon x1 5999 | -7/Factory | FarCom data flow suspended 6066 | -7/Factory | Found Prototype Launcher 6066 | -7/Factory | Identified Rocket Array 6075 | -7/Factory | Found Rocket Array 6083 | -7/Factory | Found Rocket Array 6215 | -7/Factory | Identified exit to Storage 6215 | -7/Factory | Identified exit to Lower Caves 6303 | -7/Factory | Build established: Gunner 6526 | -7/Factory | Identified Exp. Sensor Array 7346 | -7/Factory | Entered Lower Caves 7491 | -7/Lower Caves | Spotted B-75 Beast 7501 | -7/Lower Caves | Destroyed B-75 Beast 7548 | -7/Lower Caves | A Derelict revealed a hidden shortcut to meet someone special 7550 | -7/Lower Caves | Entered Data Miner 7551 | -7/Data Miner | Discovered new exit (range 6) 7579 | -7/Data Miner | Met Data Miner 7615 | -7/Data Miner | Learned location of Section 7 (-2) 7615 | -7/Data Miner | Acquired the access code to Warlord's prototype stash 7629 | -7/Data Miner | Received God Mode back door access code from Data Miner 7662 | -7/Data Miner | Entered Proximity Caves 7691 | -6/Proximity Caves | Identified exit to Factory 7692 | -6/Proximity Caves | Learned location of Extension (-4) 8069 | -6/Proximity Caves | Spotted B-75 Beast 8156 | -6/Proximity Caves | Destroyed B-75 Beast 8268 | -6/Proximity Caves | Spotter reported a threat 8473 | -6/Proximity Caves | Build established: Tank 8614 | -6/Proximity Caves | Entered Factory 8614 | -6/Factory | Evolved 2 slots: Utility x2 8630 | -6/Factory | Identified exit to DSF 8694 | -6/Factory | Entered DSF 8733 | -6/DSF | Additional patrols routed to DSF 8757 | -6/DSF | Found Prototype Device 8757 | -6/DSF | Identified Active Sensor Suite 8944 | -6/DSF | Discovered new exit (range 15) 8974 | -6/DSF | Sterilization system engaged 8994 | -6/DSF | Ambient heat levels rising (+10) 9009 | -6/DSF | Ambient heat levels rising (+10) 9024 | -6/DSF | Ambient heat levels rising (+10) 9031 | -6/DSF | Entered Garrison 9165 | -6/Garrison | Lost 8 parts (1n4u3w) 9304 | -6/Garrison | Garrison Relay disabled 9307 | -6/Garrison | Triggered checkpoint 9470 | -6/Garrison | Triggered checkpoint 9594 | -6/Garrison | Spotted B-75 Beast 9622 | -6/Garrison | Destroyed B-75 Beast 9635 | -6/Garrison | Triggered checkpoint 9648 | -6/Garrison | Lost 4 parts (1n2u1w) 9667 | -6/Garrison | Triggered checkpoint 9815 | -6/Garrison | Discovered new exit (range 8) 9857 | -6/Garrison | Triggered checkpoint 9921 | -6/Garrison | Garrison Relay disabled 10057 | -6/Garrison | Triggered checkpoint 10066 | -6/Garrison | Discovered new exit (range 12) 10232 | -6/Garrison | Triggered checkpoint 10250 | -6/Garrison | Attempted to access garrison exit controls, blocked by remote lockdown 10366 | -6/Garrison | Attempted to access garrison exit controls, blocked by remote lockdown 10421 | -6/Garrison | Triggered checkpoint 10461 | -6/Garrison | Lost 4 parts (3u1w) 10475 | -6/Garrison | Build established: Scavenger-Gunner 10524 | -6/Garrison | Discovered new exit (range 10) 10552 | -6/Garrison | Entered Factory 10552 | -5/Factory | Evolved 2 slots: Power x1, Propulsion x1 10868 | -5/Factory | Build established: Scavenger-Tank 11076 | -5/Factory | Fabricated Combat Drone Bay? 11436 | -5/Factory | Build established: Scavenger-Skirmisher 11452 | -5/Factory | Garrison activated, responded to threat 11455 | -5/Factory | Allied Derelicts emerged from ambush trap array 11517 | -5/Factory | Destroyed 7 combat bots 11526 | -5/Factory | Lost 3 allies 11718 | -5/Factory | Fabricated Lgt. Regenerative Plating (x1) 11752 | -5/Factory | First assault squad dispatched 11758 | -5/Factory | Build established: Skirmisher 12380 | -5/Factory | Incoming assault squad redirected 12485 | -5/Factory | Build established: Tank 12568 | -5/Factory | Discovered new exit (range 8) 12574 | -5/Factory | Identified exit to Factory 12574 | -5/Factory | Sucked down chute 12574 | -5/Factory | Entered Waste 12588 | -5/Waste | Spotted C-40 Crusher 12623 | -5/Waste | Spotted C-40 Crusher 12723 | -5/Waste | Spotted C-40 Crusher 12787 | -5/Waste | Destroyed C-40 Crusher 12794 | -5/Waste | Spotted C-40 Crusher 12830 | -5/Waste | Spotted C-40 Crusher 12865 | -5/Waste | Crushed by Compactor (0 parts destroyed, 1 dropped) 12868 | -5/Waste | Spotted C-40 Crusher 12876 | -5/Waste | Crushed by Compactor (1 part destroyed, 2 dropped) 12879 | -5/Waste | Crushed by Compactor (0 parts destroyed, 1 dropped) 12895 | -5/Waste | Crushed by Compactor (1 part destroyed, 1 dropped) 12900 | -5/Waste | Crushed by Compactor (1 part destroyed) 12902 | -5/Waste | Crushed by Compactor (0 parts destroyed, 1 dropped) 12933 | -5/Waste | Lost 5 parts (2n2u1w) 12968 | -5/Waste | Discovered new exit (range 16) 13068 | -5/Waste | Identified exit to Factory 13069 | -5/Waste | Entered Factory 13176 | -5/Factory | Build established: Mutant 13375 | -5/Factory | Spotted B-75 Beast 13631 | -5/Factory | Identified exit to Upper Caves 13702 | -5/Factory | Build established: Tank 13936 | -5/Factory | Garrison activated, responded to threat 14003 | -5/Factory | Lost 5 parts (2p2u1w) 14005 | -5/Factory | Destroyed 12 combat bots 14134 | -5/Factory | Lost 3 parts (2n1u) 14157 | -5/Factory | Destroyed 7 combat bots 14166 | -5/Factory | Entered Upper Caves 14172 | -5/Upper Caves | Met a Warlord Commander 14173 | -5/Upper Caves | Learned location of Warlord (-5) 14174 | -5/Upper Caves | Warlord Commander delivered Encrypted Comm Array 14179 | -5/Upper Caves | Found Encrypted Comm Array 14605 | -5/Upper Caves | Learned Factory stockpile data 14644 | -5/Upper Caves | Learned 4 Factory zone layouts 14949 | -5/Upper Caves | Build established: Skirmisher 15374 | -5/Upper Caves | Discovered new exit (range 5) 15382 | -5/Upper Caves | Identified exit to Upper Caves 15384 | -5/Upper Caves | Entered another Upper Caves area 15384 | -5/Upper Caves | Spotted 92-ZO5(f) 15386 | -5/Upper Caves | Encountered a Master Thief 15391 | -5/Upper Caves | Destroyed 92-ZO5(f) 15393 | -5/Upper Caves | Discovered exit to Factory (range 19) 15833 | -5/Upper Caves | Attracted the attention of an 0b10 checkpoint 15877 | -5/Upper Caves | Lost 3 parts (1n2u) 16087 | -5/Upper Caves | Spotted B-75 Beast 16161 | -5/Upper Caves | Build established: Tank 17232 | -5/Upper Caves | Attracted the attention of an 0b10 outpost 17258 | -5/Upper Caves | Core integrity fell below 50% 17288 | -5/Upper Caves | Lost 4 parts (2p2w) 18176 | -5/Upper Caves | Destroyed B-75 Beast 18205 | -5/Upper Caves | Lost 5 parts (1p1u3w) 18475 | -5/Upper Caves | Build established: Mutant 18779 | -5/Upper Caves | Discovered new exit (range 9) 18884 | -5/Upper Caves | Identified exit to Warlord 18899 | -5/Upper Caves | Entered Warlord 19359 | -5/Warlord | System corruption cleaned by Quarantine Array 20199 | -5/Warlord | Warlord's base attacked by MAIN.C 20545 | -5/Warlord | Opened Warlord's prototype stash 20549 | -5/Warlord | Warlord forces counterattacked 20586 | -5/Warlord | Found Prototype Hackware 20586 | -5/Warlord | Identified Ghost Barrier 20593 | -5/Warlord | Found Prototype Device 20593 | -5/Warlord | Identified Thermal Barrier 20606 | -5/Warlord | Found Prototype Reactor 20606 | -5/Warlord | Identified Vortex Chain Reactor 20770 | -5/Warlord | Met Warlord 20874 | -5/Warlord | Build established: Hacker-Mutant 20874 | -5/Warlord | Warlord base infiltrated, sounded retreat 20912 | -5/Warlord | Spotted B-75 Beast 20912 | -5/Warlord | Spotted B-86 Titan 20999 | -5/Warlord | Spotted Striker 21000 | -5/Warlord | Spotted Striker 21020 | -5/Warlord | Discovered new exit (range 9) 21037 | -5/Warlord | Identified exit to Proximity Caves 21040 | -5/Warlord | Entered Proximity Caves 21043 | -4/Proximity Caves | Spotted B-86 Titan 21062 | -4/Proximity Caves | Destroyed B-86 Titan 21189 | -4/Proximity Caves | Build established: Hacker-Tank 21443 | -4/Proximity Caves | Attracted the attention of an 0b10 outpost 21462 | -4/Proximity Caves | AWS/Gauss suddenly broke down 21491 | -4/Proximity Caves | Core integrity fell below 20% 21554 | -4/Proximity Caves | Destroyed 11 combat bots 21558 | -4/Proximity Caves | Lost 3 parts (1u2w) 21616 | -4/Proximity Caves | Attracted the attention of an 0b10 checkpoint 21628 | -4/Proximity Caves | Discovered exit to Factory (range 12) 21632 | -4/Proximity Caves | Entered Factory 21632 | -4/Factory | Evolved 2 slots: Propulsion x2 21697 | -4/Factory | Found Prototype Processor 21697 | -4/Factory | Identified Exp. Targeting Computer 21700 | -4/Factory | Found Exp. Targeting Computer 21706 | -4/Factory | Found Exp. Targeting Computer 21754 | -4/Factory | Sucked down chute 21754 | -4/Factory | Entered Waste 21757 | -4/Waste | Found Unknown Device 21757 | -4/Waste | Identified Adv. Force Booster 21762 | -4/Waste | Spotted C-40 Crusher 21768 | -4/Waste | Spotted C-40 Crusher 21768 | -4/Waste | Spotted C-40 Crusher 21784 | -4/Waste | Warlord forces began an assault 21810 | -4/Waste | Allies destroyed C-40 Crusher 21812 | -4/Waste | Allies destroyed C-40 Crusher 21813 | -4/Waste | Spotted C-40 Crusher 21823 | -4/Waste | Allies destroyed C-40 Crusher 21823 | -4/Waste | Spotted C-40 Crusher 21829 | -4/Waste | Spotted C-40 Crusher 21832 | -4/Waste | Allies destroyed C-40 Crusher 21847 | -4/Waste | Allies destroyed C-40 Crusher 21857 | -4/Waste | Allies destroyed C-40 Crusher 21871 | -4/Waste | Lost 11 allies 21991 | -4/Waste | Discovered new exit (range 12) 21999 | -4/Waste | Build established: Hacker-Gunner 22086 | -4/Waste | Identified exit to Factory 22103 | -4/Waste | Entered Factory 22103 | -4/Factory | Accompanied by 7 allies 22395 | -4/Factory | Found Prototype Processor 22395 | -4/Factory | Identified Exp. Melee Analysis Suite 22593 | -4/Factory | Lost 4 allies 22698 | -4/Factory | Lost 3 allies 22787 | -4/Factory | Build established: Scavenger-Tank 23044 | -4/Factory | Found Prototype Hackware 23044 | -4/Factory | Identified Exp. System Shield 23050 | -4/Factory | Discovered new exit (range 20) 23055 | -4/Factory | Identified exit to Research 23059 | -4/Factory | Entered Research 23059 | -3/Research | Evolved 2 slots: Utility x2 23205 | -3/Research | Identified exit to Armory 23205 | -3/Research | Identified exit to Quarantine 23219 | -3/Research | Spotted B-86 Titan 23255 | -3/Research | Build established: Scavenger-Sprinter 23327 | -3/Research | Entered Quarantine 23330 | -3/Quarantine | Cryocooling Duct disabled 23345 | -3/Quarantine | Ambient heat levels rising (+20) 23345 | -3/Quarantine | Non-combat units ordered to evacuate 23434 | -3/Quarantine | Found Alien Energy Cannon 23453 | -3/Quarantine | Found Alien Artifact 23453 | -3/Quarantine | Identified Terrabomb 23453 | -3/Quarantine | Used Terrabomb 23467 | -3/Quarantine | Discovered new exit (range 4) 23479 | -3/Quarantine | Identified exit to Research 23479 | -3/Quarantine | Entered Research 23479 | -2/Research | Warlord forces began assault on 0b10 23479 | -2/Research | Evolved 2 slots: Utility x2 23504 | -2/Research | Distinguished unit "Lobotomizers" dispatched to help 23504 | -2/Research | Distinguished unit "Death Star" dispatched to help 23549 | -2/Research | Lost 6 allies 23557 | -2/Research | Identified Core Cannon 23589 | -2/Research | Research machine network offline 23602 | -2/Research | Spotted B-90 Cyclops 23610 | -2/Research | Discovered new exit (range 21) 23628 | -2/Research | Identified exit to Access 23628 | -2/Research | Entered Access 23628 | -1/Access | Evolved 2 slots: Utility x2 23663 | -1/Access | Spotted B-99 Colossus 23731 | -1/Access | Build established: Sprinter 23731 | -1/Access | Lost 6 allies 23890 | -1/Access | Spotted B-99 Colossus 23954 | -1/Access | Energy Cycler disabled 23985 | -1/Access | Lost 3 parts (1p1n1u) 24035 | -1/Access | Build established: Hacker-Ninja 24055 | -1/Access | Discovered new exit (range 6) 24057 | -1/Access | Identified exit to Surface 24057 | *** | Escaped! Last Messages --------------- 23990_ System corrupted (+1). 24003_ System corrupted: Matter fused (-7). 24017_ Drone sends a signal. 24018_ Slug penetrates Wall. 24018_ K-01 Serf cleans the Terminal. 24019_ Slug penetrates Wall. 24022_ System corrupted: Matter fused (-9). 24037_ System corrupted: Heat flow error (+102). 24042_ Slug penetrates Wall. 24043_ K-01 Serf destroyed. 24043_ Slug penetrates Wall. 24045_ Penetrated by Slug. 24049_ P-80 Master resets G-73 Enforcer, system corruption cleaned. 24051_ Adv. Sensor Array destroyed. 24052_ System corrupted: Energy discharge (-19). 24054_ Terminal disabled. 24055_ The Access Shell folds into the floor. 24055_ EXIT=FOUND 24057_ EXIT=IDENTIFIED: SURFACE Map ----- +----------------------------------------------------+ | ?????????????????????????????????????????????????? | | ?????????????????????????????????????????????????? | | #????????????????????????????????????????????????? | | G????????????????????????????????????????????????? | | ""??????????????????????????????????????????????? | | ??????????????????????????????????????????? | | ??????????????????????????????????????????? | | ! ???????????????????????????????? ?????????? | | ???????????????????????????????? ?????????? | | ???????????????????????????????? #????????? | | ????????????????????????????????? #????????? | | ????????????????????????????????? #????????? | | ????????????????????????????????? #????????? | | ????????????????????????????????? +????????? | | # ?????????????????????????????????? #????????? | | ? #??????????????????????????????????? #????????? | | ??#??????????????????????????????????? #????????? | | ?????????????????????????????????????? #????????? | | ?????????????????????????????????????# #????????? | | ?????????????????????????????###?????# #????????? | | ????????????????????########## ####### #????????? | | ????????????????????" #????????? | | ????????????????????" #????????? | | ????????????????????" #????????? | | ????????????????????" #????????? | | ????????????????????" "@ p #????????? | | ????????????????????" "" #????????? | | ????????????????????" #????????? | | ????????????????????" #????????? | | ????????????????????" """ "" #????????? | | ????????????????????" """T""" #????????? | | ????????????????????########## ####### #????????? | | ?????????????????????????????###?????# #????????? | | ?????????????????????????????????????# #????????? | | ?????????????????????????????????????# #????????? | | ?????????????????????????????????????# #????????? | | ?????????????????????????????????????# #????????? | | ?????????????????????????????????????# #????????? | | ????????????????????????????#????????# #????????? | | ????????????????????????????# ??????# #????????? | | ????????????????????????????# "????# #????????? | | ????????????????????????????# ??# #????????? | | ????????????????????????????# ! # #????????? | | ????????????????????????????#[ + #????????? | | ????????????????????????????# # ########## | | ????????????????????????????# ??# ^ | | ????????????????????????????#####????# | | ?????????????????????????????????????# ########## | | ?????????????????????????????????????# #????????? | | ?????????????????????????????????????# #????????? | +----------------------------------------------------+ Best States ------------- Heat Dissipation 105 Energy Generation 55 Energy Capacity 995 Matter Stores 300 Matter Capacity 300 Sight Range 22 Robot Scan Range 16 Terrain Scan Range 20 Terrain Scan Density 135 ECM Strength 1 Armor Coverage 1200 Resistance: TH 50 Propulsion Shielding 66 Weapon Shielding 66 Weapon Cycling 25 Evasion (%) 65 Targeting Accuracy 24 Core Analysis 6 Recoil Reduction 4 Offensive Hacking 11 Defensive Hacking 20 Authchip Count 3 Trap Extractor Capacity 8 Item Schematics ----------------- Cmb. Airjet | -8/Materials | Scanalyzed Exp. Sensor Array | -7/Factory | Scanalyzed Combat Drone Bay | -7/Data Miner | Free Lgt. Regenerative Plating | -7/Data Miner | Free Cld. Aerolev Unit | -7/Data Miner | Free Gravity Neutralizer | -7/Data Miner | Free Shock Maul | -7/Data Miner | Free Nuclear Pulse Array | -7/Data Miner | Free Imp. Recalibrator | -7/Data Miner | Free Imp. Arc Projector | -7/Data Miner | Free Imp. Coolant Injector | -7/Data Miner | Free Adv. Power Amplifier | -7/Data Miner | Free Robot Schematics ------------------ H-66 Slayer | -7/Data Miner | Free R-10 Processor | -7/Data Miner | Free G-50 Soldier | -7/Data Miner | Free Fabricated ------------ Combat Drone Bay | x1 | -5/Factory | Authchip Lgt. Regenerative Plating | x1 | -5/Factory | Authchip Repaired ---------- Nothing Alien Tech Used ----------------- Terrabomb Core Cannon Achievements -------------- Giant Slayer Challenges ------------ None Game ------ Seed DeliveryIonReconstructor Manual? 0 Play Time 02:11:18 Cumulative 147.5 hours Start 2025.09.18 @ 16:32:52 End 2025.09.18 @ 22:59:39 Sessions 3 Manual Loads 0 Difficulty Rogue Special Mode None Game No. 126 Rogue 126 Adventurer 0 Explorer 0 Win Type 0 Total 5 Types 4/0/1/0/0/0/0/0/0/0 Lore% 72 Gallery% 64 Achievement% 60 Wizard Run 0 Options --------- Layout 1 ASCII 0 Keyboard 1 Movement Arrows Keybinds 0 Fullscreen 1 Font 24/Smallcaps Map View 50x40 Zoom Use 0% Tactical HUD 1 Map Filters NONE Filters NONE Steam 1 RUN: 62b6ed5c-da73-49d4-a4cf-1879724cf450